[Event "Championnat du monde jeunes U10"]
[Date "2024.11.24"]
[White "Iliev, Stoyan"]
[Black "Mikkelsen, Anders Askjaer"]
[WhiteElo "1671"]
[BlackElo "1745"]
[Round "9.42"]
[Result "0-1"]
[TimeControl "5400+30"]

1. e4 {[%clk 1:30:30]} 1... e6 {[%clk 1:30:47]} 2. d4 {[%clk 1:30:36]} 2... d5
{[%clk 1:31:10]} 3. exd5 {[%clk 1:30:28]} 3... exd5 {[%clk 1:31:33]} 4. Nf3
{[%clk 1:30:52]} 4... Nf6 {[%clk 1:31:42]} 5. Bd3 {[%clk 1:30:50]} 5... Bd6
{[%clk 1:31:33]} 6. O-O {[%clk 1:30:29]} 6... O-O {[%clk 1:31:50]} 7. Bg5 {[%clk
1:30:43]} 7... Bg4 {[%clk 1:30:43]} 8. c3 {[%clk 1:30:31]} 8... c6 {[%clk
1:27:34]} 9. Nbd2 {[%clk 1:30:53]} 9... Nbd7 {[%clk 1:27:50]} 10. Qc2 {[%clk
1:29:41]} 10... Qc7 {[%clk 1:27:16]} 11. Rfe1 {[%clk 1:26:50]} 11... Rfe8 {[%clk
1:26:28]} 12. Rac1 {[%clk 0:58:36]} 12... h6 {[%clk 1:21:27]} 13. Bh4 {[%clk
0:57:12]} 13... Bf4 {[%clk 1:20:41]} 14. Bg3 {[%clk 0:51:21]} 14... Nh5 {[%clk
1:17:54]} 15. Ra1 {[%clk 0:49:05]} 15... b5 {[%clk 0:59:11]} 16. Bf5 {[%clk
0:48:24]} 16... Bxf5 {[%clk 0:57:37]} 17. Qxf5 {[%clk 0:48:06]} 17... g6 {[%clk
0:57:28]} 18. Qd3 {[%clk 0:44:14]} 18... a5 {[%clk 0:52:34]} 19. a3 {[%clk
0:42:00]} 19... Kg7 {[%clk 0:50:39]} 20. b3 {[%clk 0:38:30]} 20... Qd6 {[%clk
0:41:19]} 21. c4 {[%clk 0:36:19]} 21... Rxe1+ {[%clk 0:40:29]} 22. Rxe1 {[%clk
0:36:34]} 22... dxc4 {[%clk 0:36:31]} 23. bxc4 {[%clk 0:36:57]} 23... Nc5 {[%clk
0:36:11]} 24. Qc3 {[%clk 0:35:59]} 24... Na4 {[%clk 0:36:24]} 25. Bxf4 {[%clk
0:29:42]} 25... Nxf4 {[%clk 0:35:53]} 26. Qb3 {[%clk 0:28:45]} 26... Rb8 {[%clk
0:34:14]} 27. c5 {[%clk 0:26:16]} 27... Qd5 {[%clk 0:31:23]} 28. Qc2 {[%clk
0:24:41]} 28... Ne6 {[%clk 0:29:38]} 29. Re5 {[%clk 0:23:29]} 29... Nxd4 {[%clk
0:28:38]} 30. Rxd5 {[%clk 0:16:14]} 30... Nxc2 {[%clk 0:28:57]} 31. Rd7 {[%clk
0:14:42]} 31... Nxc5 {[%clk 0:28:06]} 32. Rc7 {[%clk 0:15:03]} 32... Ne6 {[%clk
0:28:09]} 33. Rxc6 {[%clk 0:11:46]} 33... Nxa3 {[%clk 0:28:29]} 34. Ra6 {[%clk
0:09:08]} 34... a4 {[%clk 0:27:18]} 35. g3 {[%clk 0:07:56]} 35... Nc5 {[%clk
0:27:03]} 36. Ra7 {[%clk 0:07:42]} 36... b4 {[%clk 0:26:29]} 37. Ne5 {[%clk
0:07:09]} 37... Rb7 {[%clk 0:26:13]} 38. Ra5 {[%clk 0:06:26]} 38... Nb3 {[%clk
0:25:15]} 39. Nxb3 {[%clk 0:05:48]} 39... axb3 {[%clk 0:25:38]} 40. Nd3 {[%clk
0:05:58]} 40... Rd7 {[%clk 0:25:56]} 41. Nb2 {[%clk 0:03:20]} 41... Rd2 {[%clk
0:26:05]} 42. Na4 {[%clk 0:03:34]} 42... b2 {[%clk 0:25:45]} 43. Nxb2 {[%clk
0:03:57]} 43... Rxb2 {[%clk 0:26:09]} 44. Kf1 {[%clk 0:04:14]} 44... Rb1+ {[%clk
0:26:05]} 45. Ke2 {[%clk 0:04:34]} 45... Rb2+ {[%clk 0:26:30]} 46. Ke1 {[%clk
0:04:32]} 46... Nc2+ {[%clk 0:26:18]} 47. Kd1 {[%clk 0:04:33]} 47... Nd4 {[%clk
0:26:40]} 48. Ra4 {[%clk 0:04:01]} 48... Kf6 {[%clk 0:26:28]} 49. Kc1 {[%clk
0:04:03]} 49... Rb3 {[%clk 0:26:40]} 50. Ra5 {[%clk 0:03:41]} 50... h5 {[%clk
0:25:30]} 51. h4 {[%clk 0:03:57]} 51... Rc3+ {[%clk 0:24:52]} 52. Kb1 {[%clk
0:04:16]} 52... Rf3 {[%clk 0:25:02]} 53. Ra2 {[%clk 0:04:18]} 53... Ke5 {[%clk
0:24:53]} 54. Rd2 {[%clk 0:04:35]} 54... Ke4 {[%clk 0:25:04]} 55. Kb2 {[%clk
0:04:28]} 55... Rd3 {[%clk 0:24:55]} 56. Rxd3 {[%clk 0:04:29]} 56... Kxd3 {[%clk
0:25:17]} 57. f3 {[%clk 0:04:53]} 57... Ke3 {[%clk 0:25:30]} 58. g4 {[%clk
0:05:17]} 58... Kxf3 {[%clk 0:25:45]} 59. gxh5 {[%clk 0:05:43]} 59... gxh5
{[%clk 0:25:59]} 60. Kb1 {[%clk 0:06:02]} 60... f5 {[%clk 0:26:23]} 61. Kb2
{[%clk 0:06:28]} 61... f4 {[%clk 0:26:42]} 62. Ka2 {[%clk 0:06:52]} 62... Ke3
{[%clk 0:27:01]} 63. Kb2 {[%clk 0:07:14]} 63... f3 {[%clk 0:27:26]} 64. Ka2
{[%clk 0:07:39]} 64... f2 {[%clk 0:27:53]} 65. Kb2 {[%clk 0:07:55]} 65... f1=Q
{[%clk 0:28:14]} 66. Ka2 {[%clk 0:08:18]} 66... Qe2+ {[%clk 0:28:26]} 67. Kb1
{[%clk 0:08:32]} 67... Qd1+ {[%clk 0:28:51]} 68. Ka2 {[%clk 0:08:46]} 68... Qc2+
{[%clk 0:29:12]} 69. Ka1 {[%clk 0:09:12]} 69... Nb3# {[%clk 0:29:37]} 0-1

[Variant "Standard"]
[Site "Europe Echecs"]

[Event "Championnat du monde jeunes U10"]
[Date "2024.11.24"]
[White "Larionov, Serghei"]
[Black "Rama, Federico"]
[WhiteElo "1720"]
[BlackElo "1564"]
[Round "9.43"]
[Result "0-1"]
[TimeControl "5400+30"]

1. d4 {[%clk 1:30:30]} 1... Nf6 {[%clk 1:30:50]} 2. c4 {[%clk 1:30:56]} 2... e6
{[%clk 1:31:13]} 3. Nc3 {[%clk 1:31:19]} 3... Bb4 {[%clk 1:31:36]} 4. e3 {[%clk
1:31:44]} 4... b6 {[%clk 1:31:44]} 5. Bd3 {[%clk 1:29:10]} 5... Bb7 {[%clk
1:31:50]} 6. Nf3 {[%clk 1:27:30]} 6... Ne4 {[%clk 1:29:51]} 7. Qc2 {[%clk
1:19:41]} 7... f5 {[%clk 1:29:58]} 8. a3 {[%clk 1:12:34]} 8... Bxc3+ {[%clk
1:29:03]} 9. bxc3 {[%clk 1:11:52]} 9... O-O {[%clk 1:27:18]} 10. O-O {[%clk
1:10:01]} 10... d6 {[%clk 1:24:19]} 11. Nd2 {[%clk 1:03:37]} 11... Qh4 {[%clk
1:23:30]} 12. f3 {[%clk 0:58:14]} 12... Ng5 {[%clk 1:15:26]} 13. a4 {[%clk
0:49:36]} 13... Rf6 {[%clk 1:13:56]} 14. g3 {[%clk 0:38:18]} 14... Qg4 {[%clk
1:11:00]} 15. d5 {[%clk 0:22:53]} 15... Qh5 {[%clk 0:52:54]} 16. h4 {[%clk
0:19:37]} 16... Rh6 {[%clk 0:47:58]} 17. Kg2 {[%clk 0:16:23]} 17... Na6 {[%clk
0:30:35]} 18. dxe6 {[%clk 0:15:52]} 18... Nxe6 {[%clk 0:21:33]} 19. Bxf5 {[%clk
0:15:46]} 19... Rf8 {[%clk 0:19:42]} 20. Bg4 {[%clk 0:16:03]} 20... Qxg4 {[%clk
0:19:33]} 21. e4 {[%clk 0:15:41]} 21... Qh5 {[%clk 0:17:08]} 22. Nb3 {[%clk
0:15:25]} 22... Rhf6 {[%clk 0:16:37]} 23. Nd2 {[%clk 0:15:26]} 23... Nac5 {[%clk
0:14:41]} 24. Ba3 {[%clk 0:15:13]} 24... Nd7 {[%clk 0:14:13]} 25. f4 {[%clk
0:14:29]} 25... Rg6 {[%clk 0:11:19]} 26. Kf2 {[%clk 0:14:33]} 26... Nf6 {[%clk
0:06:02]} 27. Qd3 {[%clk 0:13:40]} 27... Ng4+ {[%clk 0:05:15]} 28. Ke1 {[%clk
0:13:45]} 28... Rgf6 {[%clk 0:03:04]} 29. Nf3 {[%clk 0:13:48]} 29... Ne5 {[%clk
0:02:19]} 30. Nxe5 dxe5 {[%clk 0:01:38]} 31. Bxf8 {[%clk 0:14:13]} 31... Rxf8
{[%clk 0:01:50]} 32. fxe5 {[%clk 0:11:55]} 32... Rxf1+ {[%clk 0:01:46]} 33. Qxf1
{[%clk 0:12:20]} 33... Qxe5 {[%clk 0:01:50]} 34. Kf2 {[%clk 0:11:44]} 34... Bxe4
{[%clk 0:01:53]} 35. Kg1 {[%clk 0:11:31]} 35... Qxg3+ {[%clk 0:02:12]} 0-1

[Variant "Standard"]
[Site "Europe Echecs"]

[Event "Championnat du monde jeunes U10"]
[Date "2024.11.24"]
[White "Shrubok, Herman"]
[Black "Sahin, Yusuf Kerem"]
[WhiteElo "1477"]
[BlackElo "1720"]
[Round "9.44"]
[Result "1-0"]
[TimeControl "5400+30"]

1. e4 {[%clk 1:30:34]} 1... c5 {[%clk 1:30:54]} 2. Nf3 {[%clk 1:29:10]} 2... a6
{[%clk 1:31:12]} 3. d3 {[%clk 1:26:53]} 3... e6 {[%clk 1:30:45]} 4. g3 {[%clk
1:24:52]} 4... b5 {[%clk 1:30:15]} 5. Bg2 {[%clk 1:22:52]} 5... Bb7 {[%clk
1:30:06]} 6. O-O {[%clk 1:20:52]} 6... Nf6 {[%clk 1:21:04]} 7. Nbd2 {[%clk
1:18:33]} 7... d5 {[%clk 1:21:05]} 8. Qe2 {[%clk 1:18:22]} 8... Be7 {[%clk
1:20:46]} 9. e5 {[%clk 1:16:42]} 9... Nfd7 {[%clk 1:21:04]} 10. Ne1 {[%clk
1:16:25]} 10... Nc6 {[%clk 1:19:46]} 11. f4 {[%clk 1:16:04]} 11... Qb6 {[%clk
1:17:41]} 12. Nef3 {[%clk 1:14:35]} 12... O-O-O {[%clk 1:14:20]} 13. c4 {[%clk
1:13:08]} 13... h5 {[%clk 1:10:23]} 14. h4 {[%clk 1:09:50]} 14... a5 {[%clk
1:03:27]} 15. b3 {[%clk 1:05:16]} 15... Ndb8 {[%clk 0:55:35]} 16. Bb2 {[%clk
1:00:53]} 16... Ba6 {[%clk 0:54:06]} 17. cxd5 {[%clk 0:55:16]} 17... Rxd5 {[%clk
0:48:59]} 18. Ng5 {[%clk 0:52:50]} 18... Rxd3 {[%clk 0:41:41]} 19. Qxd3 {[%clk
0:45:10]} 19... c4+ {[%clk 0:41:45]} 20. Bd4 {[%clk 0:45:34]} 20... Nxd4 {[%clk
0:22:46]} 21. bxc4 {[%clk 0:40:51]} 21... Nc2+ {[%clk 0:22:52]} 22. Kh2 {[%clk
0:41:02]} 22... Nxa1 {[%clk 0:23:16]} 23. Rxa1 {[%clk 0:40:22]} 23... Rd8 {[%clk
0:23:18]} 24. Qe2 {[%clk 0:36:08]} 24... Qd4 {[%clk 0:20:31]} 25. Nb3 {[%clk
0:35:58]} 25... Qb6 {[%clk 0:19:04]} 26. c5 {[%clk 0:33:05]} 26... Qc7 {[%clk
0:18:14]} 27. Nxf7 {[%clk 0:32:26]} 27... b4 {[%clk 0:17:26]} 28. Qxh5 {[%clk
0:31:38]} 28... Rd7 {[%clk 0:14:51]} 29. Nd6+ {[%clk 0:31:47]} 29... Bxd6 {[%clk
0:14:59]} 30. cxd6 {[%clk 0:32:12]} 30... Qd8 {[%clk 0:14:17]} 31. Rc1+ {[%clk
0:32:27]} 31... Nc6 {[%clk 0:14:43]} 32. Bxc6 {[%clk 0:32:45]} 32... Kb8 {[%clk
0:14:59]} 33. Bxd7 {[%clk 0:32:58]} 33... Qxd7 {[%clk 0:15:24]} 34. Nc5 {[%clk
0:33:21]} 34... Qb5 {[%clk 0:14:40]} 35. Nxa6+ {[%clk 0:33:27]} 35... Qxa6
{[%clk 0:15:03]} 36. Qe8+ {[%clk 0:33:46]} 1-0

[Variant "Standard"]
[Site "Europe Echecs"]

[Event "Championnat du monde jeunes U10"]
[Date "2024.11.24"]
[White "Yevsieiev, Yaroslav"]
[Black "Burba, Mikita"]
[WhiteElo "1706"]
[BlackElo "1528"]
[Round "9.45"]
[Result "1-0"]
[TimeControl "5400+30"]

1. e4 {[%clk 1:30:59]} 1... c5 {[%clk 1:30:55]} 2. Nf3 {[%clk 1:31:26]} 2... Nc6
{[%clk 1:31:16]} 3. b4 {[%clk 1:31:53]} 3... cxb4 {[%clk 1:31:26]} 4. d4 {[%clk
1:32:20]} 4... e6 {[%clk 1:31:43]} 5. d5 {[%clk 1:32:47]} 5... Qf6 {[%clk
1:31:59]} 6. c3 {[%clk 1:33:14]} 6... bxc3 {[%clk 1:32:01]} 7. dxc6 {[%clk
1:33:40]} 7... c2 {[%clk 1:31:22]} 8. Qxc2 {[%clk 1:34:07]} 8... Qxa1 {[%clk
1:30:34]} 9. e5 {[%clk 1:34:01]} 9... bxc6 {[%clk 0:57:38]} 10. Bc4 {[%clk
1:32:52]} 10... Rb8 {[%clk 0:56:25]} 11. Bb3 {[%clk 1:33:05]} 11... Ba6 {[%clk
0:52:18]} 12. Bb2 {[%clk 1:31:37]} 12... Bd3 {[%clk 0:52:08]} 13. Bxa1 {[%clk
1:31:45]} 13... Bxc2 {[%clk 0:52:23]} 14. Bxc2 {[%clk 1:32:12]} 14... Bb4+
{[%clk 0:49:38]} 15. Nc3 {[%clk 1:31:35]} 15... Ne7 {[%clk 0:49:42]} 16. O-O
{[%clk 1:31:50]} 16... O-O {[%clk 0:48:15]} 17. Rd1 {[%clk 1:30:48]} 17... Nd5
{[%clk 0:47:13]} 18. Nxd5 {[%clk 1:30:45]} 18... cxd5 {[%clk 0:47:21]} 19. Nd4
{[%clk 1:30:28]} 19... f6 {[%clk 0:44:34]} 20. Ba4 {[%clk 1:02:37]} 20... Rb7
{[%clk 0:28:56]} 21. Nf3 {[%clk 0:53:36]} 21... Rc7 {[%clk 0:24:56]} 22. exf6
{[%clk 0:51:56]} 22... gxf6 {[%clk 0:25:17]} 23. Nd4 {[%clk 0:52:10]} 23... a6
{[%clk 0:21:36]} 24. g3 {[%clk 0:46:24]} 24... Kf7 {[%clk 0:15:22]} 25. Bb2
{[%clk 0:44:16]} 25... Rfc8 {[%clk 0:13:54]} 26. Rd3 {[%clk 0:40:43]} 26... Kg6
{[%clk 0:09:37]} 27. Rf3 {[%clk 0:39:45]} 27... Be7 {[%clk 0:08:25]} 28. Bb3
{[%clk 0:37:43]} 28... Rb8 {[%clk 0:07:34]} 29. Ne2 {[%clk 0:36:18]} 29... e5
{[%clk 0:06:48]} 30. Nc3 {[%clk 0:35:32]} 30... Bd8 {[%clk 0:05:40]} 31. Nxd5
{[%clk 0:35:40]} 31... Rc5 {[%clk 0:05:18]} 32. Nc3 {[%clk 0:34:29]} 32... Kg7
{[%clk 0:04:16]} 33. Rd3 {[%clk 0:32:30]} 33... Rc7 {[%clk 0:03:08]} 34. Ba3
{[%clk 0:26:23]} 34... Rbc8 {[%clk 0:02:16]} 35. Ne4 {[%clk 0:26:01]} 35... Kg6
{[%clk 0:01:43]} 36. Nd6 {[%clk 0:23:46]} 36... Rb8 {[%clk 0:01:40]} 37. Bf7+
{[%clk 0:19:27]} 37... Kh6 {[%clk 0:01:07]} 38. h4 {[%clk 0:19:33]} 38... Rb1+
{[%clk 0:01:08]} 39. Kg2 {[%clk 0:19:56]} 39... Kg7 {[%clk 0:00:54]} 40. Ne8+
{[%clk 0:20:09]} 40... Kxf7 {[%clk 0:01:18]} 41. Nxc7 {[%clk 0:20:27]} 41...
Bxc7 {[%clk 0:01:30]} 42. Rxd7+ {[%clk 0:20:54]} 42... Ke6 {[%clk 0:01:51]} 43.
Rxc7 {[%clk 0:21:21]} 43... Ra1 {[%clk 0:01:59]} 44. Rc6+ {[%clk 0:21:21]} 44...
Kf5 {[%clk 0:02:23]} 45. Rxa6 {[%clk 0:20:57]} 45... Rxa2 {[%clk 0:02:39]} 46.
Ra7 {[%clk 0:21:25]} 46... h5 {[%clk 0:02:52]} 47. Bc5 {[%clk 0:21:47]} 47...
Rc2 {[%clk 0:03:11]} 48. Be3 {[%clk 0:22:03]} 48... Kg6 {[%clk 0:03:29]} 49. Kf3
{[%clk 0:22:20]} 49... Rc4 {[%clk 0:03:51]} 50. Ra6 {[%clk 0:22:03]} 50... Kf5
{[%clk 0:04:08]} 51. Ra8 {[%clk 0:22:21]} 51... Ke6 {[%clk 0:03:04]} 52. Rh8
{[%clk 0:22:40]} 52... f5 {[%clk 0:03:24]} 53. Rxh5 {[%clk 0:23:03]} 53... Rg4
{[%clk 0:03:42]} 54. Rh6+ {[%clk 0:22:52]} 54... Kf7 {[%clk 0:04:00]} 55. Bg5
{[%clk 0:23:01]} 55... Ra4 {[%clk 0:03:59]} 56. Rf6+ {[%clk 0:23:19]} 56... Kg7
{[%clk 0:04:23]} 57. Rxf5 {[%clk 0:23:44]} 57... Ra3+ {[%clk 0:04:46]} 58. Ke4
{[%clk 0:23:52]} 58... Ra4+ {[%clk 0:05:09]} 59. Kxe5 {[%clk 0:24:17]} 59...
Ra5+ {[%clk 0:05:34]} 60. Kf4 {[%clk 0:24:37]} 60... Ra3 {[%clk 0:05:53]} 61.
Re5 {[%clk 0:24:57]} 61... Kg6 {[%clk 0:06:11]} 62. Kg4 {[%clk 0:25:03]} 62...
Kf7 {[%clk 0:06:29]} 63. h5 {[%clk 0:24:55]} 63... Ra4+ {[%clk 0:06:56]} 64. f4
{[%clk 0:25:16]} 64... Kg7 {[%clk 0:07:20]} 65. Re7+ {[%clk 0:25:40]} 65... Kg8
{[%clk 0:07:47]} 66. Rb7 {[%clk 0:25:57]} 66... Rc4 {[%clk 0:08:02]} 67. Kf5
{[%clk 0:26:13]} 67... Rc5+ {[%clk 0:08:27]} 68. Kg6 {[%clk 0:26:36]} 68... Rc6+
{[%clk 0:08:53]} 69. Bf6 {[%clk 0:27:01]} 69... Rc8 {[%clk 0:09:13]} 70. h6
{[%clk 0:27:22]} 70... Rc7 {[%clk 0:09:03]} 71. Rb8+ {[%clk 0:27:40]} 71... Rc8
{[%clk 0:09:30]} 72. Rxc8# {[%clk 0:28:05]} 1-0

[Variant "Standard"]
[Site "Europe Echecs"]

[Event "Championnat du monde jeunes U10"]
[Date "2024.11.24"]
[White "Gim, Hajin"]
[Black "Tenuun, Tseesuren"]
[WhiteElo "1603"]
[BlackElo "1702"]
[Round "9.46"]
[Result "0-1"]
[TimeControl "5400+30"]

1. e4 {[%clk 1:30:59]} 1... e5 {[%clk 1:30:54]} 2. Nc3 {[%clk 1:31:26]} 2... Nc6
{[%clk 1:31:17]} 3. Bc4 {[%clk 1:31:49]} 3... Nf6 {[%clk 1:31:04]} 4. d3 {[%clk
1:32:06]} 4... Na5 {[%clk 1:29:17]} 5. Nge2 {[%clk 1:32:10]} 5... Nxc4 {[%clk
1:29:25]} 6. dxc4 {[%clk 1:32:20]} 6... Be7 {[%clk 1:28:38]} 7. O-O {[%clk
1:32:21]} 7... d6 {[%clk 1:28:07]} 8. Ng3 {[%clk 1:32:31]} 8... Be6 {[%clk
1:26:36]} 9. Nd5 {[%clk 1:31:36]} 9... c6 {[%clk 1:25:35]} 10. Ne3 {[%clk
1:31:41]} 10... d5 {[%clk 1:21:36]} 11. cxd5 {[%clk 1:31:14]} 11... cxd5 {[%clk
1:19:13]} 12. exd5 {[%clk 1:31:15]} 12... Nxd5 {[%clk 1:18:20]} 13. Nef5 {[%clk
1:31:36]} 13... O-O {[%clk 0:54:57]} 14. Re1 {[%clk 1:30:04]} 14... Bf6 {[%clk
0:49:48]} 15. Be3 {[%clk 1:28:34]} 15... Nxe3 {[%clk 0:49:18]} 16. Nxe3 {[%clk
1:28:44]} 16... Qb6 {[%clk 0:48:01]} 17. Qf3 {[%clk 1:15:14]} 17... Qc6 {[%clk
0:38:47]} 18. Ne4 {[%clk 1:13:02]} 18... Be7 {[%clk 0:37:16]} 19. Nf5 {[%clk
1:13:03]} 19... Bxf5 {[%clk 0:37:41]} 20. Qxf5 {[%clk 1:13:23]} 20... f6 {[%clk
0:37:14]} 21. Re3 {[%clk 1:12:27]} 21... Qc8 {[%clk 0:37:07]} 22. Qxc8 {[%clk
1:06:18]} 22... Raxc8 {[%clk 0:37:18]} 23. Rc3 {[%clk 1:06:19]} 23... f5 24.
Rxc8 {[%clk 1:06:22]} 24... Rxc8 {[%clk 0:37:40]} 25. Nc3 {[%clk 1:06:38]} 25...
Kf7 {[%clk 0:35:23]} 26. Kf1 {[%clk 1:05:28]} 26... Ke6 {[%clk 0:34:37]} 27. Ke2
{[%clk 1:05:36]} 27... Bb4 {[%clk 0:34:47]} 28. Kd3 {[%clk 1:05:06]} 28... e4+
{[%clk 0:34:57]} 29. Kd2 {[%clk 1:04:39]} 29... Ke5 {[%clk 0:32:22]} 30. Re1
{[%clk 1:04:02]} 30... Kd4 {[%clk 0:30:52]} 31. Re3 {[%clk 1:04:11]} 31... Bxc3+
{[%clk 0:27:44]} 32. bxc3+ {[%clk 1:04:30]} 32... Ke5 {[%clk 0:26:07]} 33. Rg3
{[%clk 1:04:00]} 33... Rc7 {[%clk 0:25:50]} 34. c4 {[%clk 1:03:31]} 34... g6
{[%clk 0:25:23]} 35. Kc3 {[%clk 1:03:20]} 35... b5 {[%clk 0:25:17]} 36. Kd2
{[%clk 1:01:44]} 36... Rxc4 {[%clk 0:22:55]} 37. Ra3 {[%clk 1:01:47]} 37... Ra4
{[%clk 0:22:32]} 38. Rxa4 {[%clk 1:02:03]} 38... bxa4 {[%clk 0:22:57]} 39. Kc3
{[%clk 1:02:16]} 39... f4 {[%clk 0:22:42]} 40. Kc4 {[%clk 1:02:07]} 40... g5
{[%clk 0:21:51]} 41. g3 {[%clk 1:01:57]} 41... f3 {[%clk 0:20:32]} 42. h4 {[%clk
0:59:43]} 42... gxh4 {[%clk 0:20:52]} 43. gxh4 {[%clk 1:00:06]} 43... e3 0-1

[Variant "Standard"]
[Site "Europe Echecs"]

[Event "Championnat du monde jeunes U10"]
[Date "2024.11.24"]
[White "DAmato, Raffaele"]
[Black "Chen, Pin-Jui"]
[WhiteElo "1695"]
[BlackElo "1505"]
[Round "9.47"]
[Result "1/2-1/2"]
[TimeControl "5400+30"]

1. d4 {[%clk 1:30:55]} 1... d5 {[%clk 1:30:48]} 2. Nf3 {[%clk 1:31:07]} 2... Nf6
{[%clk 1:31:02]} 3. e3 {[%clk 1:31:31]} 3... c6 {[%clk 1:30:56]} 4. Bd3 {[%clk
1:30:58]} 4... Bg4 {[%clk 1:30:17]} 5. O-O {[%clk 1:29:33]} 5... e6 {[%clk
1:28:57]} 6. Nbd2 {[%clk 1:28:37]} 6... Nbd7 {[%clk 1:25:52]} 7. c3 {[%clk
1:24:23]} 7... Bd6 {[%clk 1:24:08]} 8. e4 {[%clk 1:23:56]} 8... dxe4 {[%clk
1:24:25]} 9. Nxe4 {[%clk 1:24:15]} 9... Nxe4 {[%clk 1:24:47]} 10. Bxe4 {[%clk
1:24:37]} 10... Nf6 {[%clk 1:25:04]} 11. Bd3 {[%clk 1:23:59]} 11... O-O {[%clk
1:24:26]} 12. h3 {[%clk 1:22:53]} 12... Bh5 {[%clk 1:24:39]} 13. Bg5 {[%clk
1:22:51]} 13... h6 {[%clk 1:19:41]} 14. Bh4 {[%clk 1:21:46]} 14... Rc8 {[%clk
1:08:01]} 15. Re1 {[%clk 1:15:15]} 15... c5 {[%clk 1:01:22]} 16. dxc5 {[%clk
1:15:28]} 16... Bxf3 {[%clk 0:49:36]} 17. Qxf3 {[%clk 1:13:41]} 17... Bxc5
{[%clk 0:48:07]} 18. Rad1 {[%clk 1:11:06]} 18... Qe7 {[%clk 0:47:31]} 19. Bb5
{[%clk 1:07:53]} 19... Rfd8 {[%clk 0:42:23]} 20. Rd3 {[%clk 0:54:52]} 20... Rxd3
{[%clk 0:35:56]} 21. Qxd3 {[%clk 0:55:02]} 21... Rd8 {[%clk 0:34:22]} 22. Qf3
{[%clk 0:41:34]} 1/2-1/2

[Variant "Standard"]
[Site "Europe Echecs"]

[Event "Championnat du monde jeunes U10"]
[Date "2024.11.24"]
[White "Lenkov, Stanislav"]
[Black "Radiukevich, Viacheslau"]
[WhiteElo "1693"]
[BlackElo "1484"]
[Round "9.48"]
[Result "1/2-1/2"]
[TimeControl "5400+30"]

1. e4 {[%clk 1:30:27]} 1... e5 {[%clk 1:30:41]} 2. Nf3 {[%clk 1:29:18]} 2... Nc6
{[%clk 1:31:00]} 3. Bb5 {[%clk 1:29:16]} 3... a6 {[%clk 1:31:23]} 4. Ba4 {[%clk
1:29:02]} 4... Nf6 {[%clk 1:31:45]} 5. O-O {[%clk 1:28:56]} 5... b5 {[%clk
1:32:09]} 6. Bb3 {[%clk 1:29:00]} 6... Be7 {[%clk 1:32:29]} 7. Re1 {[%clk
1:29:26]} 7... O-O {[%clk 1:32:47]} 8. a4 {[%clk 1:29:54]} 8... Bb7 {[%clk
1:33:01]} 9. d3 {[%clk 1:27:52]} 9... d6 {[%clk 1:32:22]} 10. Nbd2 {[%clk
1:23:28]} 10... Na5 {[%clk 1:31:20]} 11. Ba2 {[%clk 1:23:49]} 11... c5 {[%clk
1:30:53]} 12. c3 {[%clk 1:22:58]} 12... Nc6 {[%clk 1:24:20]} 13. Nf1 {[%clk
1:22:38]} 13... Rb8 {[%clk 1:23:42]} 14. Ng3 {[%clk 1:21:28]} 14... Bc8 {[%clk
1:21:43]} 15. d4 {[%clk 1:19:53]} 15... cxd4 {[%clk 1:16:53]} 16. cxd4 {[%clk
1:18:35]} 16... Bg4 {[%clk 1:15:50]} 17. Nf5 {[%clk 1:13:47]} 17... Bxf5 {[%clk
1:14:28]} 18. exf5 {[%clk 1:12:59]} 18... e4 {[%clk 1:12:55]} 19. d5 {[%clk
1:11:22]} 19... Nb4 {[%clk 1:07:04]} 20. Nd4 {[%clk 1:03:07]} 20... Qb6 {[%clk
0:55:54]} 21. Be3 {[%clk 1:02:10]} 21... Nfxd5 {[%clk 0:52:33]} 22. Bxd5 {[%clk
0:41:19]} 22... Nxd5 {[%clk 0:52:45]} 23. Qg4 {[%clk 0:41:28]} 23... Nxe3 {[%clk
0:47:27]} 24. Qxe4 {[%clk 0:41:48]} 1/2-1/2

[Variant "Standard"]
[Site "Europe Echecs"]

[Event "Championnat du monde jeunes U10"]
[Date "2024.11.24"]
[White "Chkhartishvili, Lazare"]
[Black "Popov, Aleksandr And"]
[WhiteElo "1836"]
[BlackElo "1651"]
[Round "9.1"]
[Result "1/2-1/2"]
[TimeControl "5400+30"]

1. e4 e5 {[%clk 1:30:55]} 2. Nf3 {[%clk 1:30:53]} 2... Nc6 {[%clk 1:31:18]} 3.
d4 {[%clk 1:31:18]} 3... exd4 {[%clk 1:31:42]} 4. Bc4 {[%clk 1:31:43]} 4... Nf6
{[%clk 1:32:06]} 5. e5 {[%clk 1:31:32]} 5... d5 {[%clk 1:32:28]} 6. Bb5 {[%clk
1:31:04]} 6... Ne4 {[%clk 1:32:51]} 7. Nxd4 {[%clk 1:31:12]} 7... Bd7 {[%clk
1:33:13]} 8. Bxc6 {[%clk 1:31:30]} 8... bxc6 {[%clk 1:33:35]} 9. O-O {[%clk
1:31:33]} 9... Bc5 {[%clk 1:33:54]} 10. f3 {[%clk 1:30:27]} 10... Ng5 {[%clk
1:34:12]} 11. f4 {[%clk 1:30:38]} 11... Ne4 {[%clk 1:34:26]} 12. Be3 {[%clk
1:30:31]} 12... Bb6 {[%clk 1:34:25]} 13. a4 {[%clk 1:18:15]} 13... a5 {[%clk
1:31:44]} 14. c3 {[%clk 1:15:55]} 14... O-O {[%clk 1:28:37]} 15. Nd2 {[%clk
1:15:40]} 15... f5 {[%clk 1:23:35]} 16. Qe2 {[%clk 0:59:05]} 16... c5 {[%clk
1:09:48]} 17. Nxe4 {[%clk 0:54:43]} 17... cxd4 {[%clk 1:10:01]} 18. Nf6+ {[%clk
0:54:40]} 18... gxf6 {[%clk 1:10:17]} 19. cxd4 {[%clk 0:55:05]} 19... fxe5
{[%clk 1:10:00]} 20. fxe5 {[%clk 0:55:30]} 20... Be6 {[%clk 1:02:20]} 21. Rf4
{[%clk 0:54:40]} 21... Kh8 {[%clk 0:59:55]} 22. Raf1 {[%clk 0:52:11]} 22... Rg8
{[%clk 0:56:44]} 23. h3 {[%clk 0:51:23]} 23... Qe7 {[%clk 0:54:59]} 24. Qc2
{[%clk 0:41:52]} 24... Rac8 {[%clk 0:51:06]} 25. Bf2 {[%clk 0:41:28]} 25... Rg6
{[%clk 0:43:57]} 26. Bh4 {[%clk 0:26:50]} 26... Qd7 {[%clk 0:40:47]} 27. Bf6+
{[%clk 0:26:09]} 27... Kg8 {[%clk 0:40:42]} 28. Qb3 {[%clk 0:18:06]} 28... Ba7
{[%clk 0:37:11]} 29. h4 {[%clk 0:15:28]} 29... c5 {[%clk 0:32:51]} 30. h5 {[%clk
0:15:09]} 30... Rg4 {[%clk 0:32:54]} 31. Rxg4+ {[%clk 0:15:14]} 31... fxg4
{[%clk 0:33:03]} 32. Qe3 {[%clk 0:15:39]} 32... h6 {[%clk 0:25:22]} 33. Qxh6
{[%clk 0:15:36]} 33... Qh7 {[%clk 0:25:21]} 34. Qg5+ {[%clk 0:08:47]} 34... Kf7
{[%clk 0:24:58]} 35. Bg7+ {[%clk 0:01:17]} 35... Ke8 {[%clk 0:24:41]} 36. Rf6
{[%clk 0:01:20]} 36... Kd7 {[%clk 0:16:22]} 37. Rxe6 {[%clk 0:01:03]} 37... Kxe6
{[%clk 0:16:03]} 38. Qf6+ {[%clk 0:01:24]} 38... Kd7 {[%clk 0:16:13]} 39. Qd6+
{[%clk 0:01:29]} 39... Ke8 {[%clk 0:16:35]} 40. Qf8+ {[%clk 0:00:49]} 40... Kd7
{[%clk 0:16:55]} 41. Qd6+ {[%clk 0:01:14]} 41... Ke8 {[%clk 0:17:19]} 42. Qe6+
{[%clk 0:01:04]} 42... Kd8 {[%clk 0:17:32]} 43. Qd6+ {[%clk 0:01:27]} 43... Ke8
{[%clk 0:17:54]} 44. Qe6+ {[%clk 0:01:52]} 44... Kd8 {[%clk 0:18:20]} 45. Qd6+
{[%clk 0:02:06]} 1/2-1/2

[Variant "Standard"]
[Site "Europe Echecs"]